[Event "39th Muensterland Open 2022"]
[Site "Muenster"]
[Date "2022.10.02"]
[Round "2.4"]
[White "Althoff, Ralph"]
[Black "Scholz, Christian"]
[Result "0-1"]
[ECO "A49"]
[WhiteElo "1951"]
[BlackElo "2338"]
[Annotator "TA"]
[PlyCount "76"]
[EventDate "2022.10.01"]
[EventType "swiss"]
[EventCountry "GER"]
[SourceTitle "playchess.com"]
[Source "ChessBase"]
[SourceQuality "1"]
[TimeControl "40/5400+30:1800+30"]

{[%evp 14,76,0,0,0,0,14,0,0,0,56,43,44,-73,-60,-70,-77,-92,-72,-162,-169,-162,-162,-286,-295,-338,-274,-451,-464,-433,-176,-179,-180,-179,-195,-188,-195,-200,-198,-184,-167,-344,-349,-356,-357,-332,-348,-347,-346,-347,-344,-580,-565,-624,-591,-1119,-1149,-29987,-902,-1544,-1536,-1510,-1494,-29991,-1082]} 1. d4 {[%emt 0:00:02]} Nf6 {[%emt 0:00:05]} 2. Nf3 {[%emt 0:00:05]} g6 {[%emt 0:00:06]} 3. g3 {[%emt 0:00:04]} Bg7 {[%emt 0:00:04]} 4. Bg2 {[%emt 0:00:06]} O-O {[%emt 0:00:06]} 5. O-O {[%emt 0:00:03]} d6 {[%emt 0:00:06]} 6. b3 {[%emt 0:00:08]} e5 {[%emt 0:00:16]} 7. dxe5 {[%emt 0:00:24]} dxe5 {[%emt 0:00:07]} 8. Ba3 {[%emt 0:00:19]} Qxd1 {[%emt 0:00:07] 8...e4 is the fancy move. A49: 1 d4 Nf6 2 Nf3 g6 3 g3: Anti-King's Indian systems.} 9. Rxd1 {[%emt 0:00:06]} Re8 {[%emt 0:00:06]} 10. c4 {[%emt 0:00:33]} e4 {[%emt 0:01:47] The position is equal.} 11. Nd4 {[%emt 0:00:11] [#]} a6 $146 {[%emt 0:00:41] Prevents Nb5.} (11... Ng4 $11) ({Predecessor:} 11... c6 12. Nc3 Na6 13. Rac1 h5 14. h3 Bd7 15. Nc2 Rad8 16. Ne3 Bh6 17. Bd6 Bc8 {1-0 (64) Meier,G (2621)-Moranda,W (2605) Chess.com INT 2020}) 12. Nc3 $14 {[%emt 0:00:50]} Nbd7 {[%emt 0:05:24]} 13. g4 {[%emt 0:02:29]} (13. Rac1 $14 {stays ahead.}) 13... c5 $17 {[%emt 0:05:07]} (13... Nxg4 14. Nxe4 Be5 15. h3 $11) 14. Nc2 {[%emt 0:09:45]} Nxg4 {[%emt 0:01:34] Black keeps a firm grip on the game.} 15. Nd5 {[%emt 0:10:34] Strongly threatening Nc7.} Be5 {[%emt 0:05:16] Inhibits Nc7.} 16. f4 {[%emt 0:12:57]} (16. h3 $17 {is a better defense.} Ngf6 17. Rac1) 16... exf3 $1 $19 {[%emt 0:00:37]} (16... Bxa1 17. Nc7 Re7 18. Nxa8 $11) 17. exf3 {[%emt 0:00:28] [#]} Ngf6 {[%emt 0:05:47]} ({But not} 17... Bxh2+ 18. Kh1 $16) (17... Nxh2 18. Re1 $16) ({Weaker is} 17... Bxa1 18. Nxa1 Ngf6 19. Nc7 $17) 18. f4 {[%emt 0:04:00]} (18. Nxf6+ $142 Nxf6 19. Bxc5) 18... Bxa1 {[%emt 0:03:21]} 19. Nc7 {[%emt 0:02:29]} Bc3 {[%emt 0:02:40][%cal Oe8e2] White must now prevent ...Re2!} 20. Nxa8 $2 {[%emt 0:02:44]} (20. Rd3 Ba5 21. Nxa8) 20... Re2 {[%emt 0:01:29]} 21. Rc1 {[%emt 0:00:58]} Bd2 {[%emt 0:02:18]} (21... Nh5 $142 22. Bf3 Nxf4 23. Bxe2 Nxe2+ 24. Kf1 Nxc1 25. Bxc1 Nf6) 22. Rf1 {[%emt 0:03:48]} Ba5 {[%emt 0:07:17]} 23. Rf2 {[%emt 0:48:57]} Re8 {[%emt 0:02:47]} 24. b4 {[%emt 0:02:12]} cxb4 {[%emt 0:00:35]} 25. Bxb4 {[%emt 0:02:36]} Bxb4 {[%emt 0:00:09]} 26. Nxb4 {[%emt 0:00:07]} Nc5 $36 {[%emt 0:00:47][%mdl 2048] White is under strong pressure.} 27. Rd2 $2 {[%emt 0:04:10]} (27. Nd5 Nxd5 28. cxd5) 27... Bf5 {[%emt 0:04:53]} 28. Nc7 {[%emt 0:01:31]} Re1+ {[%emt 0:00:58]} 29. Kf2 {[%emt 0:00:28]} Rb1 {[%emt 0:00:11]} 30. Rd8+ {[%emt 0:09:51]} Kg7 {[%emt 0:00:06]} 31. Nbd5 {[%emt 0:00:34]} Rb2+ {[%emt 0:03:39]} 32. Kf1 $2 {[%emt 0:01:04]} (32. Kg1 {only move.}) 32... Ng4 {[%emt 0:02:16] [#] ...Bd3+ is the strong threat.} 33. Ne8+ {[%emt 0:10:37]} Kh6 {[%emt 0:00:07] Hoping for ...Bd3+.} 34. Nd6 {[%emt 0:18:15]} Bd3+ {[%emt 0:01:00]} 35. Ke1 {[%emt 0:00:28]} Rxg2 {[%emt 0:02:14]} (35... Re2+ $142 36. Kf1 Re8+ 37. Kg1 Re1+ 38. Bf1 Bxf1 39. Nxf7+ Kg7 40. Rg8+ Kxf7 41. Re8 Kxe8 42. Nf6+ Nxf6 43. h3 Nd3 44. a4 Bxh3+ 45. Kh2 Re3 46. Kh1 Ng4 47. Kg1 Re1#) 36. Nxf7+ {[%emt 0:00:11]} Kg7 {[%emt 0:00:57] ( -> ...Ne4)} 37. Ng5 {[%emt 0:18:36]} Re2+ {[%emt 0:02:04]} 38. Kd1 {[%emt 0:00:15]} Bxc4 {[%emt 0:00:56] Weighted Error Value: White=1.09/Black=0.38} (38... Nf2+ $142 39. Kc1 Rc2+ 40. Kb1 Rxc4+ 41. Ka1 Nd1 42. Rg8+ Kh6 43. Nf7+ Kh5 44. Nf6+ Kh4 45. a3 Rc1+ 46. Ka2 Bc4#) 0-1

[Event "39th Muensterland Open 2022"]
[Site "Muenster"]
[Date "2022.10.02"]
[Round "2.5"]
[White "Schiffer, Kai-Uwe"]
[Black "Sistig, Max"]
[Result "1/2-1/2"]
[ECO "B22"]
[WhiteElo "2295"]
[BlackElo "1959"]
[Annotator "TA"]
[PlyCount "90"]
[EventDate "2022.10.01"]
[EventType "swiss"]
[EventCountry "GER"]
[SourceTitle "playchess.com"]
[Source "ChessBase"]
[SourceQuality "1"]
[TimeControl "40/5400+30:1800+30"]

{[%evp 15,90,0,18,0,3,0,0,-22,-10,-18,-10,-21,15,16,16,23,16,11,16,27,27,13,26,13,27,33,54,46,63,68,70,58,122,83,121,114,95,-19,-16,-16,-20,-15,-32,-19,-9,-56,-42,-39,-45,-91,-85,-85,-80,-104,-101,-106,-114,-106,-86,-106,-73,-80,-8,-5,-8,-8,0,-18,0,0,0,-16,0,-28,-7,-16,0]} 1. e4 {[%emt 0:00:03]} c5 {[%emt 0:00:04]} 2. c3 {[%emt 0:00:14]} Nf6 {[%emt 0:00:26]} 3. e5 {[%emt 0:00:06]} Nd5 {[%emt 0:00:04]} 4. Nf3 {[%emt 0:00:05]} Nc6 {[%emt 0:00:13]} 5. d4 {[%emt 0:00:23]} cxd4 {[%emt 0:00:20]} 6. cxd4 {[%emt 0:00:20]} d6 {[%emt 0:00:34]} 7. Bc4 {[%emt 0:00:12]} Nb6 {[%emt 0:00:14]} 8. Bb5 {[%emt 0:00:13]} Bd7 {[%emt 0:15:23][%cal Oc6e5]} 9. exd6 {[%emt 0:23:33] B22: Sicilian: 2 c3.} e6 {[%emt 0:01:16]} 10. O-O {[%emt 0:03:54][%cal Od4d5]} Bxd6 {[%emt 0:00:35]} 11. a3 {[%emt 0:02:11]} O-O {[%emt 0:08:04]} 12. Nc3 {[%emt 0:00:24]} Ne7 {[%emt 0:00:46]} 13. Bd3 {[%emt 0:00:37]} Ng6 {[%emt 0:02:09]} 14. Ng5 {[%emt 0:13:05] And now Qh5 would win.} Be7 {[%emt 0:17:17] [#]} 15. Qh5 $146 {[%emt 0:01:59][%csl Gg5][%cal Rh5h7] [#]} ({Predecessor:} 15. h4 Bxg5 16. hxg5 Bc6 17. Qg4 Rc8 18. Be3 Nd5 19. Bd2 Qb6 20. Nxd5 Bxd5 21. Bb4 {½-½ (30) Krassilnikov,E (2399)-Fazulyanov,S (2354) Cheliabinsk 2008}) 15... Bxg5 {[%emt 0:00:06]} 16. Bxg5 {[%emt 0:00:07]} f6 {[%emt 0:04:09]} 17. Be3 $40 {[%emt 0:09:10][%mdl 128] White has some attack.} Be8 {[%emt 0:00:50]} 18. Qh3 {[%emt 0:03:52]} Bf7 {[%emt 0:00:52]} 19. Rac1 {[%emt 0:05:28]} a6 {[%emt 0:02:30]} 20. Ne4 {[%emt 0:05:01]} Nd5 {[%emt 0:02:45]} 21. Nc5 {[%emt 0:01:22][%csl LRb7,LRe6]} Qe7 {[%emt 0:00:29]} 22. Rfe1 {[%emt 0:00:11]} Rfe8 {[%emt 0:06:02]} 23. Bd2 {[%emt 0:03:55]} Nf8 {[%emt 0:11:24]} (23... Qd6 $14) 24. Bc4 {[%emt 0:04:03] [#] Black must now prevent Bxd5. White has more active pieces. The black rooks are badly placed. This bishop pair is nice.} Rad8 {[%emt 0:02:02]} 25. Qb3 {[%emt 0:00:06]} Rd6 {[%emt 0:05:29]} 26. Bb4 {[%emt 0:08:36]} ({Wrong is} 26. Nxb7 $2 Rb6 27. Qg3 Qxb7 $19) (26. Qxb7 $16 Qxb7 27. Nxb7) 26... Nxb4 $11 {[%emt 0:04:32]} 27. Qxb4 {[%emt 0:04:13]} Rxd4 {[%emt 0:03:55]} 28. Nxb7 {[%emt 0:00:07]} Qxb4 {[%emt 0:01:13]} 29. axb4 {[%emt 0:00:02]} Rb8 {[%emt 0:00:09]} 30. Na5 {[%emt 0:07:28]} (30. Nc5 $11) 30... Rxb4 $15 {[%emt 0:01:54]} 31. b3 {[%emt 0:00:01]} Rb6 {[%emt 0:00:41] Inhibits Nc6.} 32. Red1 {[%emt 0:00:41]} (32. g3 $15 {should be considered.}) 32... Rxd1+ $17 {[%emt 0:01:51]} 33. Rxd1 {[%emt 0:00:02]} e5 {[%emt 0:00:15]} 34. g3 {[%emt 0:00:10]} Bxc4 {[%emt 0:01:25]} 35. bxc4 {[%emt 0:00:06][%mdl 4096] Endgame KRN-KRN} Ne6 {[%emt 0:00:36]} 36. Rd7 {[%emt 0:00:21]} Nd4 {[%emt 0:01:28]} 37. Kg2 {[%emt 0:00:11]} Nb3 {[%emt 0:03:02]} 38. Nb7 {[%emt 0:01:53]} Rc6 {[%emt 0:01:28] Against c5} ({Black should play} 38... h6 $17 39. Nd6 (39. c5 Rc6 $17) 39... Nc5) 39. Nd8 $1 $11 {[%emt 0:02:38]} Rxc4 {[%emt 0:01:02]} 40. Ne6 {[%emt 0:00:02] Inhibits Rd4.} Rc6 {[%emt 0:02:06]} 41. Rxg7+ {[%emt 0:32:22]} Kh8 {[%emt 0:30:31]} 42. Re7 {[%emt 0:00:00][%cal Re7e8]} h5 {[%emt 0:00:00]} 43. Nf8 {[%emt 0:00:00]} Nd4 {[%emt 0:00:00]} 44. Ng6+ {[%emt 0:00:00]} Kg8 {[%emt 0:00:00]} 45. Ra7 {[%emt 0:00:00] Strongly threatening Ne7+.} Rb6 {[%emt 0:00:00] Weighted Error Value: White=0.14 (very precise) /Black=0.14 (very precise)} 1/2-1/2

[Event "39th Muensterland Open 2022"]
[Site "Muenster"]
[Date "2022.10.02"]
[Round "2.6"]
[White "Stillger, Bernhard"]
[Black "Celik, Ali Alper"]
[Result "1/2-1/2"]
[ECO "E02"]
[WhiteElo "2279"]
[BlackElo "1938"]
[Annotator "TA"]
[PlyCount "187"]
[EventDate "2022.10.01"]
[EventType "swiss"]
[EventCountry "GER"]
[SourceTitle "playchess.com"]
[Source "ChessBase"]
[SourceQuality "1"]
[TimeControl "40/5400+30:1800+30"]

{[%evp 19,187,51,48,49,72,73,126,87,82,88,111,100,108,107,104,108,108,100,111,115,120,117,162,160,225,212,221,194,238,163,215,143,145,132,157,100,100,108,112,81,100,102,150,156,160,143,206,210,202,181,170,154,142,127,136,124,198,189,189,106,101,100,86,84,121,121,121,121,121,119,119,101,101,102,105,78,93,79,121,121,121,121,145,121,131,0,131,121,121,121,172,100,100,100,100,100,100,100,100,45,45,45,45,45,45,45,45,0,8,8,8,0,0,0,8,8,8,8,8,8,45,45,45,45,45,45,45,45,45,45,45,45,45,45,45,45,45,45,45,45,45,0,45,0,45,45,45,0,45,45,45,45,45,45,45,0,0,0,45,45,45,45,45,45,45,0,0,0,52,0]} 1. d4 {[%emt 0:00:03]} d5 {[%emt 0:00:06]} 2. c4 {[%emt 0:01:13]} c6 {[%emt 0:00:04]} 3. Nf3 {[%emt 0:00:40]} e6 {[%emt 0:00:05]} 4. Qc2 {[%emt 0:01:29]} dxc4 {[%emt 0:00:31]} 5. Qxc4 {[%emt 0:05:12]} Nf6 {[%emt 0:00:06]} 6. g3 {[%emt 0:00:58]} Bd6 {[%emt 0:01:24]} 7. Bg2 {[%emt 0:00:58]} Nbd7 {[%emt 0:00:31]} 8. O-O {[%emt 0:01:12]} O-O {[%emt 0:00:42]} 9. Bf4 {[%emt 0:07:58]} Qc7 {[%emt 0:07:02]} 10. Bxd6 {[%emt 0:02:47]} Qxd6 {[%emt 0:00:04]} 11. Nc3 {[%emt 0:02:00] E02: Open Catalan: 5 Qa4+.} b5 {[%emt 0:07:25]} 12. Qd3 {[%emt 0:07:12] [#]} a6 $146 {[%emt 0:03:52]} (12... Rd8 $142) ({Predecessor:} 12... Bb7 13. e4 Qe7 14. e5 Ne8 15. Nd2 a6 16. a4 Nc7 17. Nce4 c5 18. Nd6 Bxg2 19. Kxg2 cxd4 20. Qxd4 {1-0 (20) Deuer,M (2274)-Vachylya,A (2199) Chess.com INT 2021}) 13. Ne4 {[%emt 0:06:19] White is better.} Nxe4 {[%emt 0:01:25]} 14. Qxe4 {[%emt 0:02:29]} Nf6 {[%emt 0:00:17]} 15. Qc2 {[%emt 0:03:46]} Bb7 {[%emt 0:00:48]} 16. Rac1 {[%emt 0:00:45]} Rac8 {[%emt 0:00:13]} 17. Rfd1 {[%emt 0:02:28]} Rfd8 {[%emt 0:01:42]} 18. e3 {[%emt 0:02:09]} Qe7 {[%emt 0:01:21][%cal Oc6c5]} 19. Ne5 {[%emt 0:00:47][%cal Bf3e5,Be5d3,Bd3c5][%mdl 32]} Nd7 {[%emt 0:09:12]} 20. Nd3 {[%emt 0:10:14] White has more active pieces.} e5 {[%emt 0:04:11]} 21. dxe5 $1 {[%emt 0:08:17]} Nxe5 {[%emt 0:59:59] [#]} (21... Ba8 $16 {is a better defense.} 22. f4 c5 23. Bxa8 Rxa8 24. Nxc5 Nxc5) 22. Qc5 $1 $18 {[%emt 0:00:31]} Qxc5 {[%emt 0:00:00]} 23. Nxc5 {[%emt 0:00:53]} Ba8 {[%emt 0:00:00]} 24. b3 {[%emt 0:03:53]} a5 {[%emt 0:00:00]} (24... g5 $142 25. Rxd8+ Rxd8 26. Nxa6 Kf8) 25. h3 {[%emt 0:03:05]} f6 {[%emt 0:00:00]} 26. f4 {[%emt 0:01:30]} Nf7 {[%emt 0:00:00]} 27. h4 {[%emt 0:00:24]} (27. a4 $142) 27... Rxd1+ $16 {[%emt 0:00:00]} 28. Rxd1 {[%emt 0:00:02] Threatens to win with Rd7.} Rd8 {[%emt 0:00:00]} 29. Rxd8+ {[%emt 0:13:19]} Nxd8 {[%emt 0:00:00][%mdl 4096] Endgame KBN-KBN} 30. a4 {[%emt 0:00:19] Hoping for axb5.} bxa4 {[%emt 0:00:00]} ({Black should play} 30... b4) 31. bxa4 {[%emt 0:00:16]} Kf7 {[%emt 0:00:00]} 32. Nb3 {[%emt 0:00:48]} Ne6 {[%emt 0:00:00]} (32... Ke6 $16 {was called for.} 33. Nxa5 Kd6) 33. f5 $18 {[%emt 0:03:57]} ({Don't play} 33. Nxa5 Nc5 34. Nxc6 Nxa4 35. Nd8+ Ke8 $16) 33... Nd8 {[%emt 0:00:00]} 34. Nxa5 {[%emt 0:00:25]} Ke7 {[%emt 0:00:00]} 35. Nc4 {[%emt 0:02:01]} Bb7 {[%emt 0:00:00]} 36. Kf2 {[%emt 0:00:47]} Ba6 {[%emt 0:00:00]} 37. Nd2 {[%emt 0:02:32]} Kd6 {[%emt 0:00:00]} (37... Kd7 $16 38. Ne4 Nb7) 38. Ne4+ {[%emt 0:00:53]} Kc7 {[%emt 0:00:00]} 39. Nc5 {[%emt 0:02:41] Prevents Bd3.} ({White should try} 39. g4 $18) 39... Bc8 $16 {[%emt 0:00:00]} 40. g4 {[%emt 0:01:36]} Kb6 {[%emt 0:00:00]} 41. Nb3 {[%emt 0:30:47]} Nb7 {[%emt 0:00:00]} 42. Nd4 {[%emt 0:00:00]} Nd8 {[%emt 0:00:00]} 43. a5+ {[%emt 0:00:00]} Kxa5 {[%emt 0:00:00]} 44. Bxc6 {[%emt 0:00:00]} Kb6 {[%emt 0:00:00]} 45. Bd5 {[%emt 0:00:00]} Kc5 {[%emt 0:00:00]} 46. Bg8 {[%emt 0:00:00]} h6 {[%emt 0:00:00]} 47. Kg3 {[%emt 0:00:00]} Kd6 {[%emt 0:00:00]} 48. Kf4 {[%emt 0:00:00]} Ke7 {[%emt 0:00:00]} 49. Bd5 {[%emt 0:00:00]} Kd6 {[%emt 0:00:00]} 50. e4 {[%emt 0:00:00]} Ba6 {[%emt 0:00:00]} 51. Nf3 {[%emt 0:00:00]} Be2 {[%emt 0:00:00]} 52. Nd4 {[%emt 0:00:00]} Ba6 {[%emt 0:00:00]} 53. Nc2 {[%emt 0:00:00]} Bd3 {[%emt 0:00:00]} 54. Ne3 {[%emt 0:00:29]} Be2 {[%emt 0:00:00]} (54... Bb5 $16 {keeps fighting.} 55. g5 hxg5+ 56. hxg5 Nc6 57. Bxc6 fxg5+ 58. Kxg5 Bxc6) 55. Ng2 {[%emt 0:03:57]} (55. g5 $18) 55... Nc6 {[%emt 0:00:00]} 56. Bxc6 {[%emt 0:00:33]} Kxc6 {[%emt 0:00:00] KB-KN} 57. Kg3 {[%emt 0:01:24] And now Nf4 would win.} Kd6 {[%emt 0:00:00]} 58. Nf4 {[%emt 0:00:10]} Bd1 {[%emt 0:00:00] [#]} 59. Nh5 {[%emt 0:02:12]} (59. Ng6 $1 $16) 59... Ke5 $1 $14 {[%emt 0:00:00]} 60. Nxg7 {[%emt 0:00:11]} Kxe4 {[%emt 0:00:00]} 61. Nh5 {[%emt 0:00:32]} Ke5 {[%emt 0:00:00]} 62. Nf4 {[%emt 0:00:04]} Ke4 {[%emt 0:00:00]} 63. Nh5 {[%emt 0:00:27]} Ke5 {[%emt 0:00:00]} 64. Kh3 {[%emt 0:00:50]} Be2 {[%emt 0:00:00]} 65. Ng3 {[%emt 0:00:23]} Bd1 {[%emt 0:00:00]} 66. Nh5 {[%emt 0:00:21]} Be2 {[%emt 0:00:00]} 67. Ng7 {[%emt 0:00:10]} Kf4 {[%emt 0:00:00] White must now prevent ...Bf1+.} 68. Ne6+ {[%emt 0:00:12]} Ke5 {[%emt 0:00:00]} 69. h5 {[%emt 0:00:16]} Bd1 {[%emt 0:00:00]} 70. Kg3 {[%emt 0:00:11]} Kd6 {[%emt 0:00:00]} 71. Kf4 {[%emt 0:00:27]} Ke7 {[%emt 0:00:00]} 72. Nc5 {[%emt 0:00:20]} Be2 {[%emt 0:00:00]} 73. Ne4 {[%emt 0:00:09]} Bd1 {[%emt 0:00:00]} 74. Nf2 {[%emt 0:00:17]} Be2 {[%emt 0:00:00]} 75. Ke3 {[%emt 0:00:11]} Ba6 {[%emt 0:00:00]} 76. Nh3 {[%emt 0:00:17]} Kf7 {[%emt 0:00:00]} 77. Nf4 {[%emt 0:00:05]} Bb5 {[%emt 0:00:00]} 78. Ne6 {[%emt 0:00:27]} Ba6 {[%emt 0:00:00]} 79. Kf4 {[%emt 0:00:25]} Be2 {[%emt 0:00:00]} 80. Nc5 {[%emt 0:00:22]} Bd1 {[%emt 0:00:00]} 81. Ne4 {[%emt 0:00:05]} Be2 {[%emt 0:00:00]} 82. Nd6+ {[%emt 0:00:34]} Ke7 {[%emt 0:00:00]} 83. Ne4 {[%emt 0:00:42]} Kf7 {[%emt 0:00:00]} 84. Nc3 {[%emt 0:00:11]} Ba6 {[%emt 0:00:00]} 85. Nd5 {[%emt 0:00:07]} Be2 {[%emt 0:00:00]} 86. Ne3 {[%emt 0:00:04]} Ba6 {[%emt 0:00:00]} 87. Ke4 {[%emt 0:00:20]} Be2 {[%emt 0:00:00]} 88. Kf4 {[%emt 0:01:45]} Ba6 {[%emt 0:00:00]} 89. Ng2 {[%emt 0:02:06]} Be2 {[%emt 0:00:00]} 90. Nh4 {[%emt 0:00:06]} Bd1 {[%emt 0:00:00]} 91. Ng6 {[%emt 0:00:07]} Be2 {[%emt 0:00:00]} 92. Nh8+ {[%emt 0:00:06]} Kg7 {[%emt 0:00:00]} 93. Ng6 {[%emt 0:00:04]} Kf7 {[%emt 0:00:00] Inhibits Ne7.} 94. Nh8+ {[%emt 0:00:05] White really could win this.  Weighted Error Value: White=0.15 (very precise) /Black=0.12 (very precise)} ({Better is} 94. Kg3 $14) 1/2-1/2

[Event "39th Muensterland Open 2022"]
[Site "Muenster"]
[Date "2022.10.02"]
[Round "2.7"]
[White "Freiknecht, Holger"]
[Black "Ollenberger, Roland"]
[Result "0-1"]
[ECO "B33"]
[WhiteElo "1916"]
[BlackElo "2256"]
[Annotator "TA"]
[PlyCount "70"]
[EventDate "2022.10.01"]
[EventType "swiss"]
[EventCountry "GER"]
[SourceTitle "playchess.com"]
[Source "ChessBase"]
[SourceQuality "1"]
[TimeControl "40/5400+30:1800+30"]

{[%evp 13,70,43,51,0,38,37,32,33,52,23,38,41,86,81,80,61,95,30,19,18,69,37,108,49,108,35,38,54,95,89,125,89,87,48,57,50,93,95,90,96,90,95,91,37,37,0,49,11,323,0,0,-198,-192,-191,-190,-194,-129,-142,-127]} 1. e4 {[%emt 0:00:05]} c5 {[%emt 0:00:08]} 2. Nf3 {[%emt 0:00:22]} Nc6 {[%emt 0:00:25]} 3. d4 {[%emt 0:00:26]} cxd4 {[%emt 0:00:07]} 4. Nxd4 {[%emt 0:00:08]} Qb6 {[%emt 0:00:12]} 5. Nb3 {[%emt 0:00:50]} Nf6 {[%emt 0:01:06]} 6. Nc3 {[%emt 0:01:31]} e6 {[%emt 0:00:20]} 7. Be3 {[%emt 0:03:30]} Qc7 {[%emt 0:00:13]} ({Don't do} 7... Qb4 8. Qf3 $16 (8. a3 Qd6 $16)) 8. Qd2 {[%emt 0:01:35] B33: Sicilian: Pelikan and Sveshnikov Variations.} (8. a3 $14) 8... a6 {[%emt 0:00:21]} (8... Bb4 $5 {[%cal Rf6e4]} 9. Bd3 d5 $11) 9. f3 {[%emt 0:02:57]} b5 {[%emt 0:00:53]} 10. O-O-O {[%emt 0:03:37] White is slightly better.} d6 {[%emt 0:05:18]} 11. Kb1 {[%emt 0:05:39]} Be7 {[%emt 0:14:35]} 12. g4 {[%emt 0:03:11]} h6 {[%emt 0:06:44]} 13. h4 $36 {[%emt 0:03:54][%mdl 2048] Black is under strong pressure.} Ne5 {[%emt 0:06:59]} 14. Qf2 {[%emt 0:11:59] [#]} Bd7 $146 {[%emt 0:15:46]} ({Predecessor:} 14... Nfd7 15. Qg2 Bb7 16. g5 h5 17. Bd4 Rc8 18. a3 Nc5 19. Qg3 Na4 20. Rh2 O-O 21. Nxa4 bxa4 {0-1 (39) Kovchan,A (2536)-Bellaiche,A (2427) Cappelle la Grande 2003}) 15. Bd3 {[%emt 0:24:30]} (15. a3 $16) 15... b4 $11 {[%emt 0:08:52]} 16. Ne2 {[%emt 0:00:42]} Ba4 {[%emt 0:14:07]} (16... a5 $11) 17. Ned4 {[%emt 0:10:48]} Nfd7 {[%emt 0:01:16]} (17... Nxd3 $14 18. cxd3 Nd7) 18. g5 {[%emt 0:04:51]} (18. Be2 $16) 18... h5 {[%emt 0:03:19]} ({Black should play} 18... Nxd3 $14 19. cxd3 Nc5) 19. Qd2 {[%emt 0:01:39]} ({White should try} 19. Be2 $16) 19... Bxb3 {[%emt 0:04:28]} 20. cxb3 {[%emt 0:01:02]} Qb7 {[%emt 0:01:44]} 21. Bc2 $1 {[%emt 0:03:50]} g6 {[%emt 0:00:42]} 22. Rhf1 {[%emt 0:00:38]} Nc5 {[%emt 0:00:34]} 23. Ne2 {[%emt 0:03:38]} O-O {[%emt 0:06:42]} 24. Ng3 {[%emt 0:00:30]} Rfd8 {[%emt 0:00:38]} 25. f4 {[%emt 0:02:25]} Ng4 {[%emt 0:00:07]} 26. f5 {[%emt 0:00:18]} Nd7 {[%emt 0:01:44]} 27. Bd4 {[%emt 0:02:19] Threatens to win with fxg6.} Nde5 {[%emt 0:00:35]} 28. Qe2 {[%emt 0:00:55]} (28. Ne2 $1 $16) 28... Bf8 {[%emt 0:01:02]} 29. Bd3 {[%emt 0:03:29]} a5 {[%emt 0:02:40]} (29... Bg7 $1 $11) 30. Bc4 {[%emt 0:00:19]} Qe7 $2 {[%emt 0:01:10][%mdl 8192] [#]} (30... Nxc4 $11 {and Black is okay.} 31. fxg6 (31. Qxc4 d5 $11) (31. bxc4 e5 $14) 31... Na3+ 32. bxa3 fxg6) 31. fxg6 $2 {[%emt 0:01:16]} (31. Bxe6 $1 $18 {[%mdl 512]} fxe6 32. fxg6) 31... fxg6 {[%emt 0:00:06]} 32. Rf6 $2 {[%emt 0:01:09]} Nxf6 $19 {[%emt 0:00:20]} 33. gxf6 {[%emt 0:00:04]} Qxf6 {[%emt 0:00:22]} 34. Rf1 {[%emt 0:00:25]} Qe7 {[%emt 0:00:12]} (34... Qxh4 $19 35. Bxe6+ Kh7) 35. Rg1 $17 {[%emt 0:01:16] [#] aiming for Nxh5.} Bg7 $1 {[%emt 0:00:34] Weighted Error Value: White=0.41/Black=0.39} 0-1

[Event "39th Muensterland Open 2022"]
[Site "Muenster"]
[Date "2022.10.02"]
[Round "2.8"]
[White "Sandkamp, Ralph"]
[Black "Kreis, Karl-Heinz"]
[Result "1-0"]
[ECO "D02"]
[WhiteElo "2241"]
[BlackElo "1920"]
[Annotator "TA"]
[PlyCount "57"]
[EventDate "2022.10.01"]
[EventType "swiss"]
[EventCountry "GER"]
[SourceTitle "playchess.com"]
[Source "ChessBase"]
[SourceQuality "1"]
[TimeControl "40/5400+30:1800+30"]

{[%evp 12,57,10,19,38,36,42,34,31,34,44,37,43,44,41,31,73,15,75,72,93,68,95,58,184,158,446,429,392,434,435,428,427,428,444,434,622,632,792,809,824,818,993,990,2109,1943,1521,1415]} 1. Nf3 {[%emt 0:00:06]} d5 {[%emt 0:00:10]} 2. g3 {[%emt 0:00:22]} Bg4 {[%emt 0:00:28]} 3. Bg2 {[%emt 0:00:16]} Nd7 {[%emt 0:00:24]} 4. d4 {[%emt 0:00:24]} Ngf6 {[%emt 0:01:04]} 5. O-O {[%emt 0:00:20]} e6 {[%emt 0:00:40]} 6. Nbd2 {[%emt 0:00:21]} c6 {[%emt 0:01:22]} 7. Re1 {[%emt 0:00:17] [#]} Nb6 $146 {[%emt 0:02:35] D02: 1 d4 d5 2 Nf3 sidelines, including 2...Nf6 3 g3 and 2...Nf6 3 Bf4.} ({Predecessor:} 7... Be7 8. e4 dxe4 9. Nxe4 O-O 10. c3 Nxe4 11. Rxe4 Bf5 12. Re1 a5 13. a4 h6 14. Qe2 Qb6 15. Nd2 Qa6 16. Nc4 Nb6 17. b3 Rfd8 18. Ba3 Bxa3 19. Nxa3 Qxe2 20. Rxe2 {½-½ (31) Rakhmanov,A (2657)-Yakubboev,N (2621) Riga 2021}) 8. e4 {[%emt 0:01:27]} Qc7 {[%emt 0:01:47]} 9. c3 {[%emt 0:02:48]} Be7 {[%emt 0:00:58] White is slightly better.} 10. h3 {[%emt 0:02:28]} Bh5 {[%emt 0:00:48]} 11. exd5 {[%emt 0:01:51]} cxd5 {[%emt 0:00:56]} 12. g4 {[%emt 0:01:10]} Bg6 {[%emt 0:00:27]} 13. Ne5 {[%emt 0:00:10]} Bd6 {[%emt 0:04:07]} 14. f4 {[%emt 0:03:51]} (14. h4 $16) 14... O-O-O {[%emt 0:08:38] [#]} (14... O-O $11 {keeps the balance.}) 15. a4 $1 $16 {[%emt 0:01:24][%cal Ba2a4,Ba4a5][%mdl 32]} Nbd7 {[%emt 0:07:39]} 16. a5 {[%emt 0:03:30]} a6 {[%emt 0:00:39]} 17. c4 {[%emt 0:01:40]} Bb4 {[%emt 0:05:13] [#]} ({Black should try} 17... Kb8 $1 $14) 18. Qa4 $1 $36 {[%emt 0:09:02][%mdl 2048] Black is under strong pressure.} Qd6 {[%emt 0:08:50] Black cannot hold the game after this.} (18... Bf8 $16 19. Qb3 Kb8) 19. c5 {[%emt 0:02:29]} Bxc5 {[%emt 0:00:08]} 20. dxc5 {[%emt 0:00:44]} Qxc5+ {[%emt 0:00:54] White is clearly winning.} 21. Kh1 {[%emt 0:00:58]} Nxe5 {[%emt 0:09:54]} 22. fxe5 {[%emt 0:04:27]} ({Not} 22. Rxe5 Bd3 23. Nb3 Qb5 24. Qxb5 Bxb5 $18) 22... Nd7 {[%emt 0:00:21]} 23. Nf3 {[%emt 0:01:16] Be3 is the strong threat.} Bc2 {[%emt 0:16:18]} (23... Qc4 $142 24. Qxc4+ dxc4) 24. Qf4 {[%emt 0:03:12]} Qe7 {[%emt 0:03:28]} 25. Be3 {[%emt 0:01:18]} Be4 {[%emt 0:00:55]} 26. Ng5 {[%emt 0:00:46]} Bxg2+ {[%emt 0:01:45]} 27. Kxg2 {[%emt 0:00:07]} Rdf8 {[%emt 0:03:47]} 28. Rac1+ {[%emt 0:01:06]} Kb8 {[%emt 0:00:10]} 29. Qd4 {[%emt 0:00:26] Weighted Error Value: White=0.06 (flawless) /Black=0.68} 1-0